bitfinex/quotes_ETHUSD_20240603
["timestamp","ask_amount","ask_price","bid_price","bid_amount"]
[1717436825136,0.55423553,3782.7,3782.3,1.32126577]
[1717436825336,1.01957576,3782.7,3782.3,1.32126577]
[1717436825850,3.45528382,3783.1,3782.4,2.64381]
[1717436825851,0.55423553,3783.0,3782.4,2.64381]
[1717436826068,0.55423553,3783.0,3782.6,2.64365]
[1717436826264,0.55423553,3783.0,3782.8,2.64354]
[1717436826415,0.55423553,3783.0,3782.9,1.32126577]
[1717436826616,0.55423553,3783.3,3782.9,1.32126577]
[1717436827742,0.55423553,3783.3,3783.0,2.64339]
[1717436827944,0.55423553,3783.4,3783.1,1.32126577]
[1717436828318,0.55423553,3783.4,3782.3,2.64383]
[1717436828518,0.55423553,3783.2,3782.4,1.32126577]
[1717436828950,0.55423553,3782.9,3782.4,1.32126577]
[1717436829858,2.1418448,3782.8,3782.4,1.32126577]
[1717436830063,0.55423553,3782.6,3782.4,1.32126577]
[1717436830216,0.55423553,3782.6,3781.9,2.64413]
[1717436830413,0.55423553,3782.6,3782.0,1.32126577]
[1717436830653,0.55423553,3782.5,3782.0,1.32126577]
[1717436831565,1.12564839,3782.5,3782.0,1.32126577]
[1717436831751,0.67497877,3782.4,3782.0,1.32126577]
[1717436832064,1.2292143,3782.4,3782.0,1.32126577]
[1717436832434,2.81682357,3782.4,3782.0,1.32126577]
[1717436832967,2.71316099,3782.3,3781.5,2.64439]
[1717436833171,2.15892546,3782.2,3781.6,1.32126577]
[1717436833325,2.15892546,3782.3,3781.6,1.32126577]
[1717436833519,1.58744519,3782.3,3781.6,1.32126577]
[1717436833935,2.14168072,3782.3,3781.6,1.32126577]
[1717436834335,1.58744519,3782.2,3781.6,1.32126577]
[1717436834539,2.15892546,3782.2,3781.6,1.32126577]
[1717436835434,2.15892546,3782.1,3781.6,1.32126577]
[1717436835640,1.58744519,3782.1,3781.6,1.32126577]
[1717436835931,2.15892546,3782.2,3781.6,1.32126577]
[1717436837239,2.15892546,3782.2,3781.6,1.71783135]
[1717436837569,1.58744519,3782.4,3781.6,1.32126577]
[1717436837762,2.15890292,3782.3,3781.6,1.32126577]
[1717436838272,2.15890292,3782.3,3782.0,2.64408]
[1717436838429,2.15890292,3782.3,3782.1,1.32126577]
[1717436839468,1.58744519,3782.2,3782.1,1.32126577]
[1717436839968,2.15890292,3782.2,3782.1,1.32126577]
[1717436840139,0.90867415,3782.3,3782.1,1.32126577]
[1717436840140,1.58744519,3782.3,3782.1,1.32126577]
[1717436840349,0.57147674,3782.2,3782.1,1.32126577]
[1717436840650,0.55423553,3782.5,3782.1,1.32126577]
[1717436840651,1.58743539,3782.5,3782.1,1.32126577]
[1717436840870,2.1588708,3782.5,3782.1,1.32126577]
[1717436841267,2.1588708,3782.4,3782.1,1.32126577]
[1717436841579,1.58743539,3782.4,3782.1,1.32126577]
[1717436841874,2.1588708,3782.5,3782.1,1.32126577]
[1717436842589,1.58743539,3782.5,3782.1,1.32126577]
[1717436842884,2.1588708,3782.5,3782.2,2.64394]
[1717436843093,2.1588708,3782.5,3782.3,1.32126577]
[1717436843475,1.58743539,3782.6,3782.3,1.32126577]
[1717436843800,2.15884227,3782.6,3782.3,1.32126577]
[1717436844303,2.15884227,3782.5,3782.3,1.32126577]
[1717436845586,2.15884227,3782.4,3782.3,1.32126577]
[1717436846189,2.7130778,3782.4,3782.3,1.32126577]
[1717436846362,2.14167092,3782.4,3782.3,1.32126577]
[1717436846575,2.7130778,3782.4,3782.3,1.32126577]
[1717436846775,2.14167092,3782.4,3782.3,1.32126577]
[1717436846964,2.7130778,3782.4,3782.3,1.32126577]
[1717436847170,2.14167092,3782.4,3782.3,1.32126577]
[1717436847394,2.15884227,3782.4,3782.3,1.32126577]
[1717436847688,0.57140688,3782.4,3782.3,1.32126577]
[1717436847891,1.40265462,3782.4,3782.3,1.32126577]
[1717436848791,0.57140688,3782.4,3782.3,1.32126577]
[1717436849096,1.40206953,3782.4,3782.3,1.32126577]
[1717436849390,0.57146125,3782.4,3782.3,1.32126577]
[1717436850388,2.15882707,3782.4,3782.3,1.32126577]
[1717436851797,3.26771089,3782.4,3782.3,1.32126577]
[1717436851982,2.15882707,3782.4,3782.3,1.32126577]
[1717436852796,0.57146125,3782.4,3782.3,1.32126577]
[1717436853100,1.68034507,3782.4,3782.3,1.32126577]
[1717436854000,0.57146125,3782.4,3782.3,1.32126577]
[1717436855862,1.68021367,3782.4,3782.3,1.32126577]
[1717436856380,0.57146125,3782.4,3782.3,1.32126577]
[1717436858132,1.68021173,3782.4,3782.3,1.32126577]
[1717436859786,0.57146125,3782.4,3782.3,1.32126577]
[1717436859988,1.68025106,3782.4,3782.3,1.32126577]
[1717436862816,1.68024826,3782.4,3782.3,1.32126577]
[1717436863534,0.57145845,3782.4,3782.3,1.32126577]
[1717436863707,0.57145845,3782.4,3781.8,2.6442]
[1717436863912,0.83161759,3782.1,3781.9,1.32126577]
[1717436864097,0.57145845,3782.0,3781.9,1.32126577]
[1717436864435,1.40307604,3782.0,3781.9,1.32126577]
[1717436865629,1.6802819,3782.0,3781.9,1.32126577]
[1717436865852,1.6802819,3782.0,3781.4,2.64446]
[1717436865992,0.55446082,3781.6,3781.5,1.32126577]
[1717436866194,1.12591927,3781.6,3781.5,1.32126577]
[1717436867028,2.71349529,3781.6,3781.5,1.32126577]
[1717436867597,0.57145845,3781.6,3781.5,1.32126577]
[1717436867820,1.40314969,3781.6,3781.5,1.32126577]
[1717436868021,1.734147,3781.6,3781.0,2.64473]
[1717436868237,0.55447885,3781.3,3781.1,1.32126577]
[1717436868441,0.57145845,3781.2,3781.1,1.32126577]
[1717436868597,2.99082355,3781.2,3781.1,1.32126577]
[1717436869224,2.99082355,3781.3,3781.1,1.32126577]
[1717436869735,0.57145845,3781.2,3781.1,1.32126577]
[1717436869908,2.4193651,3781.3,3781.1,1.32126577]
[1717436870109,0.55440507,3781.2,3781.1,1.32126577]
[1717436872052,2.99098504,3781.3,3781.1,1.32126577]
[1717436872202,0.554147,3781.2,3781.1,1.32126577]
[1717436872414,2.99100106,3781.3,3781.1,1.32126577]
[1717436872601,0.57163596,3781.2,3781.1,1.32126577]
[1717436872801,2.15930982,3781.2,3780.6,2.64504]
[1717436873035,0.55417741,3781.0,3780.7,1.32126577]
[1717436873334,0.55417741,3781.1,3780.7,1.32126577]
[1717436873900,0.55417741,3781.0,3780.7,1.32126577]
[1717436876063,0.55417741,3780.9,3780.7,1.32126577]
[1717436876447,0.40819408,3781.0,3780.7,1.32126577]
[1717436876448,0.96237149,3781.0,3780.7,1.32126577]
[1717436876825,0.55417741,3780.9,3780.7,1.32126577]
[1717436877464,0.55417741,3780.8,3780.7,1.32126577]
[1717436877970,1.2394602,3781.0,3780.7,1.32126577]
[1717436877971,0.83126612,3780.9,3780.7,1.32126577]
[1717436878144,1.0045757,3780.8,3780.7,1.32126577]
[1717436879136,1.0045757,3780.8,3780.2,2.6453]
[1717436879474,0.5538099,3780.8,3780.3,1.32126577]
[1717436880474,0.5538099,3780.9,3780.3,1.32126577]
[1717436880673,0.5538099,3780.9,3780.4,2.64517]
[1717436880875,0.5538099,3781.1,3780.5,1.32126577]
[1717436882078,0.5538099,3781.1,3780.6,2.64507]
[1717436882305,0.5538099,3781.2,3780.7,3.73756577]
[1717436882477,0.5538099,3781.3,3780.7,3.73756577]
[1717436882781,1.40654324,3781.3,3780.7,3.73756577]
[1717436882951,0.5538099,3781.2,3780.7,3.73756577]
[1717436883160,1.40654324,3781.3,3780.7,3.73756577]
[1717436883341,0.5538099,3781.2,3780.7,3.73756577]
[1717436883956,1.40654324,3781.3,3780.7,3.73756577]
[1717436885404,1.20081522,3781.2,3780.7,1.32126577]
[1717436885846,0.5538099,3781.1,3780.7,1.32126577]
[1717436889918,2.14181544,3781.1,3780.7,1.32126577]
[1717436890434,2.71349743,3781.0,3780.3,2.3103]
[1717436890558,0.76345389,3780.9,3780.4,1.32126577]
[1717436890759,2.90526933,3780.9,3780.4,1.32126577]
[1717436891664,2.90526933,3780.9,3780.2,2.64529]
[1717436891951,2.71349743,3780.8,3780.3,1.32126577]
[1717436892511,2.15968753,3780.8,3780.3,1.32126577]
[1717436893270,3.16317627,3780.8,3780.3,1.32126577]
[1717436893601,0.57171134,3780.7,3780.3,1.32126577]
[1717436893770,3.16328716,3780.8,3780.3,1.32126577]
[1717436894501,1.58808708,3780.7,3780.3,1.32126577]
[1717436895016,2.64537,3780.2,3779.2,3.704762]
[1717436895180,2.64561,3779.9,3779.3,1.32126577]
[1717436895361,1.58820525,3779.7,3779.3,1.32126577]
[1717436895566,2.16009044,3779.7,3779.3,1.32126577]
[1717436896064,1.58820525,3779.6,3779.3,1.32126577]
[1717436896264,1.58820525,3779.7,3779.3,1.32126577]
[1717436898163,1.58820525,3779.8,3779.3,1.32126577]
[1717436898413,2.16009808,3779.8,3779.3,1.32126577]
[1717436900011,4.23381525,3779.9,3779.3,1.32126577]
[1717436900308,0.99527254,3779.8,3779.3,1.32126577]
[1717436900628,2.58347779,3779.8,3779.3,1.32126577]
[1717436900903,1.58820525,3779.7,3779.3,1.32126577]
[1717436901063,2.58347779,3779.8,3779.3,1.32126577]
[1717436901262,2.64572,3779.7,3779.3,1.32126577]
[1717436901497,0.75267978,3779.6,3779.3,1.32126577]
[1717436902711,0.75267978,3779.6,3778.8,2.64627]
[1717436902916,0.75267978,3779.6,3778.9,1.32126577]
[1717436904088,2.64586,3779.5,3778.9,1.32126577]
[1717436905811,4.80654015,3779.5,3778.9,1.32126577]
[1717436906009,2.646,3779.3,3778.9,1.32126577]
[1717436906189,2.646,3779.3,3778.4,2.64659]
[1717436906393,2.64667,3778.4,3777.2,2.3494]
[1717436906599,2.64667,3778.4,3777.3,1.32126577]
[1717436906792,2.64667,3778.4,3777.3,1.95308235]
[1717436914326,2.64684,3778.1,3777.3,1.32126577]
[1717436919532,2.64705,3777.8,3777.3,1.32126577]
[1717436919739,2.64727,3777.5,3776.7,2.64775]
[1717436919982,2.64757,3777.1,3776.0,2.64829]
[1717436920183,2.64749,3777.2,3776.1,1.32126577]
[1717436920384,4.2362004,3777.2,3776.1,1.32126577]
[1717436920621,2.64765,3777.0,3776.1,1.32126577]
[1717436921178,2.64775,3776.8,3775.6,0.00139481]
[1717436921486,2.16110587,3776.7,3775.7,1.32126577]
[1717436921685,2.4129,3776.9,3775.7,1.32126577]
[1717436921686,2.64798,3776.5,3775.7,1.32126577]
[1717436921997,4.2366904,3776.5,3775.7,1.32126577]
[1717436922171,2.26131899,3776.4,3775.7,1.32126577]
[1717436922368,0.67260859,3776.4,3775.7,1.32126577]
[1717436922569,1.24504142,3776.4,3775.7,1.32126577]
[1717436923912,2.6481,3776.3,3775.6,0.00139481]
[1717436924225,2.6481,3776.3,3775.6,1.32266058]
[1717436924375,0.4909419,3776.2,3775.6,1.32266058]
[1717436926409,1.06337835,3776.2,3775.6,1.32266058]
[1717436926610,2.65208875,3776.2,3775.6,1.32266058]
[1717436928087,1.5887104,3776.1,3775.6,1.32266058]
[1717436928270,1.06337835,3776.2,3775.6,1.32266058]
[1717436928271,2.0796523,3776.2,3775.6,1.32266058]
[1717436928474,2.65209761,3776.2,3775.6,1.32266058]
[1717436929375,2.65209761,3776.2,3775.7,1.32126577]
[1717436929376,0.57244531,3776.2,3775.7,1.32126577]
[1717436929574,2.64785,3776.7,3775.7,1.32126577]
[1717436929575,1.5887104,3776.4,3775.7,1.32126577]
[1717436930627,0.57241848,3776.5,3775.7,1.32126577]
[1717436930984,1.59002903,3776.3,3775.7,1.32126577]
[1717436931396,1.59002903,3776.3,3775.6,0.00139481]
[1717436931622,0.48104095,3776.2,3775.6,1.32266058]
[1717436931927,1.59002903,3776.1,3775.6,1.32266058]
[1717436932095,2.16243948,3776.0,3775.6,1.32266058]
[1717436932290,1.59002903,3775.9,3775.6,1.32266058]
[1717436933291,2.16243948,3775.8,3775.6,1.32266058]
[1717436933496,1.59002903,3775.8,3775.6,1.32266058]
[1717436934810,2.16243948,3775.8,3775.6,1.32266058]
[1717436935038,1.59002903,3775.8,3775.6,1.32266058]
[1717436935355,1.59002903,3775.7,3775.6,1.32266058]
[1717436935856,1.59002903,3775.8,3775.6,1.32266058]
[1717436936057,2.16243948,3775.8,3775.6,1.32266058]
[1717436936232,2.16243948,3775.7,3775.6,1.32266058]
[1717436936813,1.59002903,3776.0,3775.6,1.32266058]
[1717436937112,0.5723985,3775.9,3775.7,1.32126577]
[1717436937309,1.59002903,3776.0,3775.7,1.32126577]
[1717436937514,0.57239206,3775.9,3775.7,1.32126577]
[1717436937714,1.59002903,3776.0,3775.7,1.32126577]
[1717436937915,2.16242102,3775.9,3775.7,1.32126577]
[1717436938157,0.57241061,3775.8,3775.7,1.32126577]
[1717436938659,1.59002903,3775.9,3775.7,1.32126577]
[1717436939854,1.59002903,3776.0,3775.7,1.32126577]
[1717436940061,2.16241812,3775.9,3775.7,1.32126577]
[1717436940268,1.59002903,3775.9,3775.7,1.32126577]
[1717436941165,1.59002903,3775.9,3775.8,5.12274]
[1717436941341,1.59002903,3775.9,3775.8,6.44400577]
[1717436941669,1.59002903,3776.5,3776.2,2.64815]
[1717436941876,0.57229979,3776.4,3776.3,1.32126577]
[1717436942033,7.32,3777.3,3776.4,2.64802]
[1717436942034,1.59002903,3776.6,3776.4,2.64802]
[1717436942236,1.59002903,3776.7,3776.6,2.64788]
[1717436942439,0.57227217,3776.7,3776.6,3.96914577]
[1717436942839,2.1623012,3776.7,3776.6,3.96914577]
[1717436943161,0.57227217,3776.7,3776.6,3.96914577]
[1717436943473,2.1623012,3776.7,3776.6,3.96914577]
[1717436946496,2.64737,3777.4,3776.6,3.96914577]
[1717436946625,2.16186752,3776.7,3776.6,2.64788]
[1717436948469,2.16188879,3776.7,3776.6,2.64788]
[1717436949547,2.16188879,3776.7,3776.6,3.96914577]
[1717436949956,1.58962685,3776.7,3776.6,1.32126577]
[1717436950199,2.16189251,3776.7,3776.2,2.64812]
[1717436950403,2.16189251,3776.7,3776.3,1.32126577]
[1717436950608,0.57226566,3776.7,3776.3,1.32126577]
[1717436950811,0.57226566,3776.6,3776.3,1.32126577]
[1717436951008,0.57226566,3776.5,3776.2,2.64812]
[1717436951177,0.57226566,3776.4,3776.2,3.96938577]
[1717436951380,0.57226566,3776.3,3776.2,3.96938577]
[1717436954126,2.16211475,3776.3,3776.2,3.96938577]
[1717436955113,2.16211475,3776.3,3776.0,0.00137353]
[1717436955438,1.58984909,3776.1,3776.0,0.00137353]
[1717436955590,2.16211475,3776.1,3776.0,0.00137353]
[1717436956201,1.58984909,3776.1,3776.0,0.00137353]
[1717436956415,2.16211475,3776.1,3776.0,0.00137353]
[1717436956635,2.43566625,3776.1,3776.0,0.00137353]
[1717436956787,0.84594383,3776.1,3776.0,0.00137353]
[1717436956992,2.43592253,3776.1,3776.0,0.00137353]
[1717436957555,1.8635302,3776.1,3776.0,0.00137353]
[1717436958037,0.84594383,3776.1,3776.0,0.00137353]
[1717436958192,1.5899787,3776.2,3776.0,0.00137353]
[1717436958193,2.16237103,3776.2,3776.0,0.00137353]
[1717436958395,1.80619018,3776.3,3776.0,0.00137353]
[1717436958593,2.3785729,3776.3,3776.0,0.00137353]
[1717436958910,2.16236142,3776.2,3776.0,0.00137353]
[1717436959114,2.3785729,3776.3,3776.0,0.00137353]
[1717436959548,2.16236142,3776.3,3776.1,3.96948577]
[1717436959845,1.5899787,3776.4,3776.1,3.96948577]
[1717436960148,1.5899787,3776.5,3776.1,3.96948577]
[1717436960722,2.16232257,3776.4,3776.1,3.96948577]
[1717436960901,1.5899787,3776.4,3776.1,3.96948577]
[1717436961439,2.1437886,3776.4,3776.1,3.96948577]
[1717436961743,2.49852846,3776.4,3776.1,3.96948577]
[1717436961959,0.57237986,3776.3,3776.1,1.32126577]
[1717436962105,2.49849383,3776.4,3776.1,1.32126577]
[1717436962106,3.07087369,3776.4,3776.1,1.32126577]
[1717436962452,0.57237986,3776.3,3776.1,1.32126577]
[1717436962654,2.49849383,3776.4,3776.1,1.32126577]
[1717436963202,2.14375397,3776.4,3776.1,1.32126577]
[1717436964328,0.5538099,3776.3,3776.0,2.64960353]
[1717436964634,0.5538099,3776.2,3776.0,2.64960353]
[1717436965540,1.12618976,3776.2,3776.0,2.64960353]
[1717436965841,0.5538099,3776.2,3776.0,2.64960353]
[1717436966054,0.5538099,3776.2,3776.1,1.32126577]
[1717436966536,0.5538099,3776.4,3776.1,1.32126577]
[1717436966743,1.12616238,3776.4,3776.1,1.32126577]
[1717436967348,1.12616238,3776.4,3776.2,3.27878693]
[1717436967552,0.5538099,3776.7,3776.4,2.64802]
[1717436967851,2.14375397,3777.0,3776.6,2.64788]
[1717436968005,0.5538099,3777.1,3776.8,2.64774]
[1717436968204,0.5538099,3777.1,3776.9,1.32126577]
[1717436968642,0.5538099,3777.1,3777.0,2.6476]
[1717436968871,2.14375397,3777.3,3777.0,3.96886577]
[1717436969043,0.5538099,3777.3,3777.1,1.32126577]
[1717436969256,1.12600762,3777.3,3777.1,1.32126577]
[1717436969547,0.5538099,3777.3,3777.2,2.64746]
[1717436969846,0.5538099,3777.4,3777.2,3.96872577]
[1717436970022,2.42121019,3777.6,3777.3,1.32126577]
[1717436970023,1.12597972,3777.5,3777.3,1.32126577]
[1717436970235,0.5538099,3777.5,3777.4,2.64732]
[1717436970559,0.5538099,3777.6,3777.4,3.96858577]
[1717436970782,1.58994407,3777.7,3777.6,2.64718]
[1717436970783,2.71591133,3777.7,3777.6,2.64718]
[1717436970938,2.14412435,3777.8,3777.6,3.96844577]
[1717436971256,0.55399774,3777.8,3777.7,1.32126577]
[1717436972570,1.12613469,3777.9,3777.7,1.32126577]
[1717436972758,0.55399774,3777.8,3777.7,1.32126577]
[1717436973228,0.55399774,3777.9,3777.7,1.32126577]
[1717436973429,0.55399774,3777.8,3777.7,1.32126577]
[1717436973753,1.12614177,3777.9,3777.7,1.32126577]
[1717436974262,0.55399774,3777.9,3777.7,1.32126577]
[1717436975578,1.1261348,3778.0,3777.7,1.32126577]
[1717436976287,0.55399774,3778.0,3777.7,1.32126577]
[1717436977069,1.0196148,3778.0,3777.7,1.32126577]
[1717436977377,0.55399774,3777.8,3777.1,2.64746]
[1717436977575,0.55399774,3777.8,3777.2,1.32126577]
[1717436979378,0.57213924,3777.9,3777.2,1.32126577]
[1717436979379,2.82069774,3777.7,3777.2,1.32126577]
[1717436980038,0.55399774,3777.6,3777.2,1.32126577]
[1717436980480,2.82069774,3777.7,3777.2,1.32126577]
[1717436981074,0.55399774,3777.6,3777.2,1.32126577]
[1717436981443,0.55399774,3777.5,3777.2,1.32126577]
[1717436984564,1.51478991,3777.5,3776.7,4.98035]
[1717436984764,1.51478991,3777.5,3776.8,1.32126577]
[1717436984965,0.55399774,3777.4,3776.8,1.32126577]
[1717436985170,0.55399774,3777.3,3776.8,1.32126577]
[1717436985380,0.55399774,3777.4,3776.8,1.32126577]
[1717436985691,0.55399774,3777.4,3776.9,2.64767]
[1717436985904,0.55399774,3777.6,3777.0,2.12026577]
[1717436986456,0.55399774,3777.5,3777.0,2.12026577]
[1717436987276,0.55399774,3777.5,3777.1,2.64749]
[1717436987466,0.55399774,3777.5,3777.2,1.32126577]
[1717436987708,0.55399774,3777.6,3777.2,1.32126577]
[1717436988102,0.55399774,3777.7,3777.2,1.32126577]
[1717436989254,1.1261756,3777.7,3777.2,1.32126577]
[1717436989412,0.55399774,3777.6,3777.2,1.32126577]
[1717436989938,1.1261756,3777.7,3777.2,1.32126577]
[1717436990736,0.55399774,3777.6,3777.2,1.32126577]
[1717436990898,1.1261756,3777.7,3777.2,1.32126577]
[1717436991414,2.71567932,3777.7,3777.2,1.32126577]
[1717436991620,1.1261756,3777.7,3777.2,1.32126577]
[1717436992118,2.71567932,3777.7,3777.2,1.32126577]
[1717436992842,2.14350146,3777.7,3777.2,1.32126577]
[1717436993054,2.14350146,3777.8,3777.2,1.32126577]
[1717436993254,2.14350146,3777.7,3777.2,1.32126577]
[1717436993456,2.16167317,3777.7,3777.2,1.32126577]
[1717436993750,1.58950372,3777.7,3777.2,1.32126577]
[1717436994511,2.16167317,3777.7,3777.2,1.32126577]
[1717436995350,2.16167317,3777.6,3777.2,1.32126577]
[1717436995559,1.58950372,3777.6,3777.2,1.32126577]
[1717436995845,2.16167317,3777.6,3777.2,1.32126577]
[1717436996448,0.55399774,3777.8,3777.2,1.32126577]
[1717436996449,2.16167317,3777.5,3777.2,1.32126577]
[1717436996825,0.57216945,3777.4,3777.2,1.32126577]
[1717436997308,0.57216945,3777.3,3777.2,1.32126577]
[1717436998640,1.58950372,3777.4,3777.2,1.32126577]
[1717436999149,1.58950372,3777.4,3777.3,2.64739]
[1717436999341,2.16166736,3777.4,3777.3,3.96865577]
[1717437000211,2.16166736,3777.4,3777.3,4.60702135]
[1717437000411,0.57216364,3777.4,3777.3,4.60702135]
[1717437000853,1.58950372,3777.6,3777.3,4.60702135]
[1717437001056,1.58950372,3777.6,3777.5,2.64725]
[1717437001254,1.58950372,3777.6,3777.5,3.96851577]
[1717437001551,2.16162505,3777.6,3777.5,3.96851577]
[1717437002050,0.57212133,3777.6,3777.5,3.96851577]
[1717437002251,0.57211836,3777.6,3777.5,3.96851577]
[1717437003216,0.57211836,3777.6,3777.5,4.36536735]
[1717437004354,1.58921768,3777.7,3777.5,4.36536735]
[1717437004658,1.58918559,3777.8,3777.7,2.64711]
[1717437004831,2.16129194,3777.8,3777.7,3.96837577]
[1717437006042,2.16129194,3777.8,3777.7,4.40489851]
[1717437006227,0.57210635,3777.8,3777.7,4.40489851]
[1717437006428,1.58918559,3778.1,3777.7,1.75778851]
[1717437006636,1.58918559,3778.2,3778.0,2.6469]
[1717437006828,1.58918559,3778.2,3778.1,1.32126577]
[1717437007028,2.16121888,3778.2,3778.1,1.32126577]
[1717437007361,0.55399774,3778.4,3778.2,2.64676]
[1717437007362,1.58918559,3778.3,3778.2,2.64676]
[1717437007527,0.5720285,3778.3,3778.2,3.96802577]
[1717437008563,0.57204008,3778.3,3778.2,3.96802577]
[1717437009128,2.14299798,3778.4,3778.2,3.96802577]
[1717437009440,2.71503806,3778.4,3778.3,1.32126577]
[1717437009654,2.14299798,3778.4,3778.3,1.32126577]
[1717437009856,2.71503806,3778.4,3778.3,1.32126577]
[1717437010029,2.14299798,3778.4,3778.3,1.32126577]
[1717437010224,1.12603782,3778.4,3778.3,1.32126577]
[1717437010442,2.16104032,3778.4,3778.3,1.32126577]
[1717437011184,2.14312118,3778.4,3778.3,1.32126577]
[1717437011331,1.58900024,3778.4,3778.3,1.32126577]
[1717437012365,2.42026636,3778.4,3778.3,1.32126577]
[1717437013057,1.4033062,3778.4,3778.3,1.32126577]
[1717437013266,0.83126612,3778.4,3778.3,1.32126577]
[1717437013421,1.4033062,3778.4,3778.3,1.32126577]
[1717437014772,0.83126612,3778.4,3778.3,1.32126577]
[1717437016263,2.99230644,3778.5,3778.3,2.12026577]
[1717437016581,2.99230644,3778.5,3778.4,2.64662]
[1717437016582,0.83126612,3778.5,3778.4,2.64662]
[1717437016733,2.99228547,3778.6,3778.4,3.96788577]
[1717437016935,0.83126612,3778.6,3778.5,0.799]
[1717437017132,2.4202141,3778.6,3778.5,0.799]
[1717437017333,2.99223529,3778.6,3778.5,0.799]
[1717437017531,2.4202141,3778.6,3778.5,0.799]
[1717437018689,0.83126612,3778.6,3778.5,2.12026577]
[1717437018835,0.83126612,3778.6,3778.5,2.59695435]
[1717437019038,0.55427492,3778.8,3778.6,2.64648]
[1717437019239,0.55427492,3778.9,3778.8,2.64634]
[1717437019479,0.55427492,3779.1,3778.8,4.76660577]
[1717437019633,0.55427492,3779.1,3778.9,1.32126577]
[1717437019988,0.55427492,3779.1,3779.0,2.6462]
[1717437020129,0.55427492,3779.2,3779.0,4.76646577]
[1717437020330,0.55427492,3779.3,3779.0,4.76646577]
[1717437020587,0.55427492,3779.4,3779.2,0.799]
[1717437021086,1.12615723,3779.5,3779.2,0.799]
[1717437021292,0.55427492,3779.5,3779.2,0.799]
[1717437021440,0.55427492,3779.6,3779.2,0.799]
[1717437021784,0.55427492,3779.6,3779.1,1.32126577]
[1717437022088,0.55427492,3779.5,3779.1,1.32126577]
[1717437022292,0.55427492,3779.6,3779.1,1.32126577]
[1717437022437,0.55427492,3779.6,3779.2,0.799]
[1717437022633,0.55427492,3779.6,3779.3,1.32126577]
[1717437023269,1.12615655,3779.7,3779.3,1.32126577]
[1717437023587,0.55427492,3779.6,3779.3,1.32126577]
[1717437024139,0.55427492,3779.7,3779.3,1.32126577]
[1717437025238,2.71471513,3779.8,3779.3,1.32126577]
[1717437025484,0.55427492,3779.8,3779.3,1.32126577]
[1717437025999,2.142835,3779.8,3779.3,1.32126577]
[1717437026323,2.71469533,3779.8,3779.3,1.32126577]
[1717437026629,2.142835,3779.9,3779.3,1.32126577]
[1717437026813,3.76743426,3779.9,3779.4,0.799]
[1717437027013,1.60701838,3779.9,3779.4,0.799]
[1717437027327,1.05274346,3779.9,3779.4,0.799]
[1717437027531,3.76744164,3779.9,3779.4,0.799]
[1717437027739,3.19557846,3779.9,3779.4,0.799]
[1717437027912,0.57186306,3779.8,3779.4,0.799]
[1717437028432,2.142835,3779.9,3779.4,0.799]
[1717437028631,2.71469421,3779.9,3779.4,0.799]
[1717437029134,2.16035423,3779.9,3779.4,0.799]
[1717437029534,2.71462915,3779.9,3779.4,0.799]
[1717437030011,4.78828068,3780.0,3779.4,0.799]
[1717437030190,1.43379708,3779.9,3779.4,0.799]
[1717437030996,0.86195468,3779.9,3779.4,0.799]
[1717437031410,2.16033331,3780.0,3779.5,3.96708577]
[1717437031620,0.57183755,3780.0,3779.5,3.96708577]
[1717437032046,0.04824404,3779.9,3779.5,3.96708577]
[1717437032567,0.04824404,3779.9,3779.2,2.64605]
[1717437032708,0.04824404,3779.9,3779.3,1.32126577]
[1717437032907,2.24468099,3779.8,3779.3,1.32126577]
[1717437033134,1.63613631,3779.7,3779.3,1.32126577]
[1717437034312,0.04764055,3779.7,3779.3,1.32126577]
[1717437034713,2.24468099,3779.8,3779.3,2.12026577]
[1717437034913,0.04760168,3779.6,3779.3,2.12026577]
[1717437035157,2.20802318,3779.7,3779.3,2.12026577]
[1717437035338,2.24468099,3779.8,3779.3,2.12026577]
[1717437035545,2.81655064,3779.8,3779.3,2.12026577]
[1717437035861,0.04763768,3779.7,3779.3,2.12026577]
[1717437036163,1.58849576,3779.7,3779.3,2.12026577]
[1717437036365,0.04759881,3779.6,3779.3,2.12026577]
[1717437037361,0.04759881,3779.6,3779.2,2.64605]
[1717437037362,2.3975,3779.5,3778.8,2.64627]
[1717437037534,0.04752393,3779.4,3778.9,1.32126577]
[1717437038178,2.20788934,3779.4,3778.9,1.32126577]
[1717437038381,0.61939358,3779.4,3778.9,1.32126577]
[1717437039430,0.61939358,3779.4,3779.0,0.799]
[1717437039636,0.61939358,3779.4,3779.0,2.12026577]
[1717437039637,0.61943117,3779.4,3779.0,2.12026577]
[1717437039939,0.04752393,3779.4,3779.0,2.12026577]
[1717437040353,0.04744459,3779.3,3779.0,2.12026577]
[1717437040574,1.58863124,3779.5,3779.0,2.12026577]
[1717437040957,0.04748347,3779.4,3779.2,2.64606]
[1717437041273,0.04748347,3779.4,3779.3,1.32126577]
[1717437041789,1.58863124,3779.6,3779.3,1.32126577]
[1717437041982,0.04751158,3779.5,3779.4,2.6459]
[1717437042296,0.55427492,3779.7,3779.4,4.76616577]
[1717437042503,2.14276031,3779.7,3779.5,1.32126577]
[1717437042686,2.14276031,3779.7,3779.6,3.44478]
[1717437042860,0.55427492,3779.7,3779.6,4.76604577]
[1717437046110,0.55427492,3779.7,3779.6,3.96704577]
[1717437046305,0.55427492,3779.7,3779.6,1.32126577]
[1717437047214,2.71458629,3779.7,3779.6,1.32126577]
[1717437047396,2.14276031,3779.7,3779.6,1.32126577]
[1717437047598,2.71458629,3779.7,3779.6,1.32126577]
[1717437047802,2.14276031,3779.7,3779.6,1.32126577]
[1717437048028,2.71458629,3779.7,3779.6,1.32126577]
[1717437048840,2.76227001,3779.7,3779.6,1.32126577]
[1717437049135,1.17378462,3779.7,3779.6,1.32126577]
[1717437049544,1.17378462,3779.7,3779.2,2.64601]
[1717437049842,1.58851495,3779.5,3779.3,1.32126577]
[1717437050143,2.16034093,3779.4,3779.3,1.32126577]
[1717437050445,0.61939308,3779.4,3779.3,1.32126577]
[1717437050789,2.20790803,3779.4,3779.3,1.32126577]
[1717437050990,0.61939308,3779.4,3779.3,1.32126577]
[1717437053148,1.173668,3779.4,3779.3,1.32126577]
[1717437056119,0.61939308,3779.4,3779.3,1.32126577]
[1717437058226,1.4506592,3779.4,3779.3,1.32126577]
[1717437060139,0.61939308,3779.4,3779.3,1.32126577]
[1717437060467,1.45103081,3779.4,3779.3,1.32126577]
[1717437061195,0.61939308,3779.4,3779.3,1.32126577]
[1717437061479,1.45121884,3779.4,3779.3,1.32126577]
[1717437061826,3.03981097,3779.4,3779.3,1.32126577]
[1717437062377,1.45121884,3779.4,3779.3,1.32126577]
[1717437062959,0.61939308,3779.4,3779.3,1.32126577]
[1717437063170,1.72821653,3779.4,3779.3,1.32126577]
[1717437063364,0.61939308,3779.4,3779.3,1.32126577]
[1717437064271,1.72821653,3779.4,3779.3,1.32126577]
[1717437064866,2.20794753,3779.4,3779.3,1.32126577]
[1717437065038,2.20794753,3779.4,3779.3,1.71800635]
[1717437065222,2.20794753,3779.4,3779.3,4.87820635]